[Event "35th Staufer-Open-A 2025"]
[Site "Schwaebisch Gmuend"]
[Date "2025.01.05"]
[Round "7.2"]
[White "Lu, Miaoyi"]
[Black "Stork, Oliver"]
[Result "1/2-1/2"]
[ECO "B45"]
[WhiteElo "2429"]
[BlackElo "2396"]
[Annotator "TA"]
[PlyCount "88"]
[EventDate "2024.11.24"]
[EventType "swiss"]
[EventCountry "GER"]
[SourceTitle "playchess.com"]
[Source "ChessBase"]
[SourceQuality "1"]
[TimeControl "40/6000+30:1200+30"]

{[%evp 15,88,18,39,39,27,33,34,33,41,32,51,26,64,0,0,0,0,0,0,-7,0,0,0,0,0,-14,0,0,0,-6,-6,-12,-10,-14,-6,-7,-6,-6,-6,-9,0,-10,-11,-22,-10,-10,-8,-8,-8,-8,0,0,0,0,0,0,0,0,0,0,0,0,8,8,8,8,8,8,8,8,8,8,8,8,0]} 1. e4 {[%emt 0:00:01]} c5 {[%emt 0:00:13]} 2. Nf3 {[%emt 0:00:26]} e6 {[%emt 0:00:09]} 3. d4 {[%emt 0:00:24]} cxd4 {[%emt 0:00:08]} 4. Nxd4 {[%emt 0:00:04]} Nf6 {[%emt 0:00:06][%cal Bg8f6,Bf6d5,Bd5b4][%mdl 32]} 5. Nc3 {[%emt 0:00:02]} Nc6 {[%emt 0:00:05]} 6. Nxc6 {[%emt 0:00:05]} bxc6 {[%emt 0:00:05]} 7. e5 {[%emt 0:00:04]} Nd5 {[%emt 0:00:05]} 8. Ne4 {[%emt 0:00:04]} Bb7 {[%emt 0:00:30]} 9. Bd3 {[%emt 0:00:20]} c5 {[%emt 0:02:02]} 10. O-O {[%emt 0:01:58]} Qc7 {[%emt 0:05:28]} 11. c4 {[%emt 0:13:03]} Nb4 {[%emt 0:01:07]} 12. Bf4 {[%emt 0:01:28]} Be7 {[%emt 0:22:12]} 13. Bb1 {[%emt 0:12:42]} Nc6 {[%emt 0:08:26]} 14. Re1 {[%emt 0:27:52] White has more active pieces. The black rooks are passive.} (14. Nd6+ $14 Bxd6 15. exd6) 14... Nxe5 $11 {[%emt 0:31:11]} 15. Qh5 {[%emt 0:01:16]} d6 $1 {[%emt 0:00:06]} 16. Nxd6+ {[%emt 0:00:42]} Bxd6 {[%emt 0:00:05]} 17. Bxe5 {[%emt 0:00:06]} Bxe5 {[%emt 0:02:13]} 18. Rxe5 {[%emt 0:05:53]} (18. Qxe5 {simplifies} Qxe5 19. Rxe5 Rc8 20. Bc2) 18... g6 {[%emt 0:00:30]} 19. Qg5 {[%emt 0:12:17]} (19. Rxc5 $2 Qd6 20. Bxg6 fxg6 $19) 19... Qd8 {[%emt 0:10:23]} 20. h4 {[%emt 0:06:31]} Qxg5 {[%emt 0:09:23]} 21. hxg5 {[%emt 0:00:02]} Rc8 {[%emt 0:00:08]} 22. Bc2 {[%emt 0:03:08]} h6 {[%emt 0:01:33]} 23. gxh6 {[%emt 0:06:37]} Rxh6 {[%emt 0:00:14]} 24. Rd1 {[%emt 0:03:44]} Ke7 {[%emt 0:00:22]} 25. f3 {[%emt 0:00:33]} Rh4 {[%emt 0:01:35]} 26. b3 {[%emt 0:00:13]} Rhh8 {[%emt 0:11:07]} 27. Kf2 {[%emt 0:02:09]} Kf6 {[%emt 0:00:55]} 28. Re2 {[%emt 0:02:29]} Rcd8 {[%emt 0:00:14] Inhibits Rd7.} 29. Red2 {[%emt 0:00:08]} Ke7 {[%emt 0:00:19]} 30. Rxd8 {[%emt 0:05:16]} Rxd8 {[%emt 0:00:04]} 31. Rxd8 {[%emt 0:00:05]} Kxd8 {[%emt 0:00:02][%mdl 4096] Endgame KB-KB} 32. Ke3 {[%emt 0:01:49]} Ke7 {[%emt 0:00:49]} 33. a3 {[%emt 0:01:50]} a5 {[%emt 0:00:05]} 34. b4 {[%emt 0:01:22]} axb4 {[%emt 0:00:08]} 35. axb4 {[%emt 0:00:02]} cxb4 {[%emt 0:00:07]} 36. Kd4 {[%emt 0:00:08]} g5 {[%emt 0:00:52]} 37. Kc5 {[%emt 0:03:04]} f5 {[%emt 0:01:11][%cal Bf7f5,Bf5g4,Bg4g3,Bg3g2][%mdl 32]} 38. Kb6 {[%emt 0:00:50]} Bxf3 {[%emt 0:03:02]} 39. gxf3 {[%emt 0:00:04]} g4 {[%emt 0:00:04]} 40. fxg4 {[%emt 0:00:03]} fxg4 {[%emt 0:00:04] KB-K3P} 41. c5 {[%emt 0:20:20][%cal Bc4c5,Bc5c6,Bc6c7][%mdl 32]} g3 {[%emt 0:20:04] ( -> ...g2)} (41... b3 $5 42. Be4 $8 (42. Bxb3 $2 {perishes.} g3 $19) 42... g3 $11) 42. Be4 {[%emt 0:00:11]} b3 {[%emt 0:00:04][%cal Bb4b3,Bb3b2][%mdl 32] ( -> ...b2)} 43. c6 {[%emt 0:00:05] Threatening mate with c7.} b2 $1 {[%emt 0:00:40][%cal Og3g2] ( -> ...g2!)} 44. c7 $1 {[%emt 0:00:04]} g2 {[%emt 0:01:43]} 1/2-1/2

[Event "35th Staufer-Open-A 2025"]
[Site "Schwaebisch Gmuend"]
[Date "2025.01.05"]
[Round "7.3"]
[White "Herbrig, Alexander"]
[Black "Peng, Li Min"]
[Result "0-1"]
[ECO "A61"]
[WhiteElo "2325"]
[BlackElo "2518"]
[Annotator "TA"]
[PlyCount "66"]
[EventDate "2024.11.24"]
[EventType "swiss"]
[EventCountry "GER"]
[SourceTitle "playchess.com"]
[Source "ChessBase"]
[SourceQuality "1"]
[TimeControl "40/6000+30:1200+30"]

{[%evp 18,66,27,25,32,25,36,31,37,20,17,9,6,-13,0,-26,-11,-28,-24,-27,-18,-10,-11,-15,0,-5,-2,-76,-47,-150,-167,-152,-140,-681,-682,-689,-689,-676,-658,-743,-720,-752,-730,-684,-708,-721,-718,-717,-706,-1143,-666]} 1. d4 {[%emt 0:00:32]} Nf6 {[%emt 0:01:54]} 2. c4 {[%emt 0:00:32]} e6 {[%emt 0:02:03]} 3. Nf3 {[%emt 0:00:33]} c5 {[%emt 0:00:50]} 4. d5 {[%emt 0:01:49]} d6 {[%emt 0:00:09]} 5. Nc3 {[%emt 0:03:04]} exd5 {[%emt 0:00:09]} 6. cxd5 {[%emt 0:00:12]} g6 {[%emt 0:00:09]} 7. Bf4 {[%emt 0:01:28]} a6 {[%emt 0:01:18]} 8. a4 {[%emt 0:00:08]} Bg7 {[%emt 0:00:06]} 9. h3 {[%emt 0:00:22]} O-O {[%emt 0:00:05]} 10. e3 {[%emt 0:00:07]} Ne8 {[%emt 0:00:04]} 11. Be2 {[%emt 0:06:27]} Nd7 {[%emt 0:00:08]} 12. O-O {[%emt 0:02:18]} Ne5 {[%emt 0:09:44]} 13. Qb3 {[%emt 0:13:44]} Nxf3+ {[%emt 0:07:59]} 14. Bxf3 {[%emt 0:00:25]} Rb8 {[%emt 0:00:03]} 15. Qc4 {[%emt 0:15:10]} f5 {[%emt 0:10:56]} 16. Be2 {[%emt 0:12:36]} Nc7 {[%emt 0:04:51]} 17. Qb3 {[%emt 0:08:22]} g5 {[%emt 0:10:51]} 18. Bh2 {[%emt 0:00:46]} b5 {[%emt 0:00:03]} 19. axb5 {[%emt 0:01:06]} axb5 {[%emt 0:00:02]} 20. Ra7 {[%emt 0:04:00]} (20. Nxb5 $2 f4 (20... Bd7 21. Bxd6 Bxb5 22. Bxc7 $17) 21. Ra5 Bd7 22. exf4 Nxb5 23. Rxb5 Bxb5 24. Bxb5 Qa5 (24... gxf4 $2 25. Qd3 $19) 25. fxg5 Rxb5 $19 (25... Qxb5 $2 26. Qxb5 Rxb5 27. Bxd6 $19)) 20... Kh8 {[%emt 0:07:42]} (20... b4 {simplifies} 21. Na4 Ra8 22. Rxa8 Nxa8 23. Qc2 Qe7) 21. Rfa1 {[%emt 0:05:18]} (21. Bxb5 $2 f4 22. Qc4 Nxb5 23. Nxb5 Qb6 $17 (23... Bxb2 24. exf4 Qb6 25. Qc2 $16)) 21... f4 {[%emt 0:05:15]} 22. Bg4 {[%emt 0:01:31]} (22. Nxb5 $2 Bd7 23. R7a5 (23. Rxc7 $2 Qxc7 24. Nxc7 Rxb3 $19) 23... Nxb5 24. Bxb5 Qb6 25. exf4 Bxb5 $19 (25... gxf4 $2 26. Bxf4 Rxf4 27. Qe3 $19)) (22. Bf3 $11 {remains equal.}) 22... b4 {[%emt 0:04:58]} 23. Bxc8 {[%emt 0:10:13] [#]} (23. Ne4 $15) 23... c4 $1 $36 {[%emt 0:06:18][%mdl 2048] Keeping White busy.} (23... Rxc8 $6 24. Ne4 $15) 24. Qxc4 {[%emt 0:09:26]} bxc3 {[%emt 0:00:09]} 25. Bb7 $2 {[%emt 0:00:41][%mdl 8192]} (25. Qxc7 $2 Qxc7 26. Rxc7 cxb2 $19 (26... Rbxc8 $2 {too greedy.} 27. Rxc8 Rxc8 28. bxc3 $18)) (25. Bg4 $17 cxb2 26. Rb1) 25... cxb2 $19 {[%emt 0:00:10]} 26. Rb1 {[%emt 0:00:48]} fxe3 {[%emt 0:05:46]} 27. fxe3 {[%emt 0:00:32]} Qe7 {[%emt 0:00:12]} 28. Kh1 {[%emt 0:03:56]} Ne8 {[%emt 0:00:40]} 29. Qb3 {[%emt 0:01:40]} Rf7 {[%emt 0:00:13][%cal Rb8b7]} 30. Rxb2 {[%emt 0:00:28]} Bxb2 {[%emt 0:00:06]} 31. Qxb2+ {[%emt 0:00:06]} Kg8 {[%emt 0:00:04]} 32. Qb5 {[%emt 0:00:45] Inhibits Rf1+.} Qd7 {[%emt 0:04:39]} (32... Rxb7 33. Rxb7 Qxb7 34. Qxe8+ Kg7 35. Bxd6 Qxd5 36. Bg3 $15) 33. Qc6 {[%emt 0:01:13]} Re7 {[%emt 0:01:52]} ({Weaker is} 33... Rxb7 34. Rxb7 Qxb7 35. Qxe8+ Kg7 36. Bxd6 Qxd5 37. Be5+ Kh6 38. Kg1 $15) 0-1

[Event "35th Staufer-Open-A 2025"]
[Site "Schwaebisch Gmuend"]
[Date "2025.01.05"]
[Round "7.4"]
[White "Noe, Christopher"]
[Black "Zeller, Frank"]
[Result "1-0"]
[ECO "E71"]
[WhiteElo "2509"]
[BlackElo "2325"]
[Annotator "TA"]
[PlyCount "79"]
[EventDate "2024.11.24"]
[EventType "swiss"]
[EventCountry "GER"]
[SourceTitle "playchess.com"]
[Source "ChessBase"]
[SourceQuality "1"]
[TimeControl "40/6000+30:1200+30"]

{[%evp 10,79,30,19,49,40,51,45,39,0,13,16,33,24,54,54,67,64,65,64,82,70,74,65,81,85,85,97,82,77,77,58,68,56,70,60,101,91,95,90,115,66,67,74,70,70,77,58,79,68,73,84,77,63,90,85,135,75,62,82,75,61,66,64,152,154,147,162,1105,1082,6237,3810]} 1. d4 {[%emt 0:00:06]} Nf6 {[%emt 0:02:18]} 2. c4 {[%emt 0:00:23]} g6 {[%emt 0:01:03]} 3. Nc3 {[%emt 0:00:07]} Bg7 {[%emt 0:00:40]} 4. e4 {[%emt 0:00:07]} d6 {[%emt 0:00:08]} 5. h3 {[%emt 0:00:08]} O-O {[%emt 0:01:24]} 6. Be3 {[%emt 0:00:07]} Nc6 {[%emt 0:01:05]} 7. d5 {[%emt 0:03:46]} Ne5 {[%emt 0:01:20]} 8. f4 {[%emt 0:01:03]} Ned7 {[%emt 0:00:08]} 9. Bd3 {[%emt 0:00:07]} e6 {[%emt 0:05:43]} 10. Nf3 {[%emt 0:12:08]} exd5 {[%emt 0:02:31]} 11. cxd5 {[%emt 0:00:23]} Re8 {[%emt 0:04:31][%cal Of6e4]} 12. O-O {[%emt 0:16:53]} c6 {[%emt 0:09:12]} 13. dxc6 $1 {[%emt 0:04:34]} bxc6 {[%emt 0:00:03]} 14. Qd2 {[%emt 0:05:23]} Qa5 {[%emt 0:09:21]} 15. Rfe1 {[%emt 0:00:18]} Rb8 {[%emt 0:05:01]} 16. Rad1 {[%emt 0:06:58]} Nh5 {[%emt 0:09:06][%cal Ob8b2]} 17. Nd4 {[%emt 0:11:14]} Qc7 {[%emt 0:17:20][%cal Oh5f4]} 18. Be2 {[%emt 0:00:06]} Nhf6 {[%emt 0:06:13]} 19. Bf3 {[%emt 0:00:27][%cal Oe4e5]} Nb6 {[%emt 0:05:51]} 20. b3 {[%emt 0:05:55] Dodges Nc4} Bb7 {[%emt 0:00:08]} 21. Bf2 {[%emt 0:12:41]} Rbd8 {[%emt 0:02:15]} 22. Bh4 {[%emt 0:00:07]} a6 {[%emt 0:01:32]} 23. Nc2 {[%emt 0:01:58]} c5 {[%emt 0:05:20]} 24. Ne3 {[%emt 0:00:06]} Rd7 {[%emt 0:00:31]} 25. Nc4 {[%emt 0:03:14]} ({White should play} 25. a4 $16) 25... Nxc4 $14 {[%emt 0:06:09]} 26. bxc4 {[%emt 0:00:02]} Bc6 {[%emt 0:00:10]} 27. Nd5 {[%emt 0:09:09]} Bxd5 $1 {[%emt 0:00:20]} 28. cxd5 {[%emt 0:00:02][%cal Oe4e5]} c4 {[%emt 0:04:27]} 29. Rc1 {[%emt 0:00:04]} Rdd8 {[%emt 0:05:01]} 30. Qb4 {[%emt 0:05:58] Active counter play!} (30. Qd4 Nxe4 31. Qxc4 Qxc4 32. Rxc4 Bf6 33. Bxf6 Nxf6 34. Rxe8+ Nxe8) 30... Rc8 {[%emt 0:00:10]} 31. e5 $36 {[%emt 0:00:11][%mdl 2048] White has the initiative.} Nd7 {[%emt 0:04:22]} (31... dxe5 $2 32. d6 Qc5+ (32... Qa7+ $2 33. Bf2 $18) 33. Qxc5 Rxc5 34. Bf2 $18) 32. exd6 {[%emt 0:05:17]} Qa7+ {[%emt 0:01:18]} (32... Rxe1+ 33. Bxe1 (33. Rxe1 Bf8 $14) 33... Qa7+ 34. Kf1 c3 (34... Qd4 $2 35. Qb7 $18)) 33. Bf2 {[%emt 0:03:31] A strong pair of Bishops.} (33. Kh1 $142 {And now Rxe8+ would win.} Rxe1+ 34. Qxe1) 33... Bd4 $16 {[%emt 0:00:31]} 34. Rxe8+ {[%emt 0:00:51]} Rxe8 {[%emt 0:00:01]} 35. Qd2 $1 {[%emt 0:00:16]} Bc5 {[%emt 0:01:41][%cal Oc4c3]} 36. g3 {[%emt 0:04:13]} (36. Rxc4 Bxf2+ 37. Kh2 Bg1+ 38. Kh1 Bc5 $19) 36... Re3 {[%emt 0:00:51]} 37. Kg2 {[%emt 0:00:16]} Rd3 {[%emt 0:00:40]} 38. Qe2 {[%emt 0:00:27]} Be3 $2 {[%emt 0:00:16]} (38... Bxf2 39. Qxf2 (39. Rxc4 Bg1 $15) 39... Qb8) 39. Rxc4 $18 {[%emt 0:00:42]} Rd2 {[%emt 0:00:10]} 40. Qxd2 {[%emt 0:00:00]} 1-0

[Event "35th Staufer-Open-A 2025"]
[Site "Schwaebisch Gmuend"]
[Date "2025.01.05"]
[Round "7.5"]
[White "Korneev, Oleg"]
[Black "Hasenohr, Benedict"]
[Result "1-0"]
[ECO "C13"]
[WhiteElo "2486"]
[BlackElo "2289"]
[Annotator "TA"]
[PlyCount "99"]
[EventDate "2024.11.24"]
[EventType "swiss"]
[EventCountry "GER"]
[SourceTitle "playchess.com"]
[Source "ChessBase"]
[SourceQuality "1"]
[TimeControl "40/6000+30:1200+30"]

{[%evp 14,99,11,19,21,8,0,1,6,10,22,2,22,25,41,48,38,48,37,43,43,48,41,31,45,0,29,34,27,35,81,89,91,87,91,91,118,43,41,39,41,45,39,32,35,34,29,38,75,77,81,95,86,83,147,147,270,264,266,264,275,306,316,272,254,185,192,25,30,64,54,31,443,362,1138,1158,919,716,12399,7486,5497,2064,8235,6490,6283,6087,29991,29992]} 1. e4 {[%emt 0:11:39]} e6 {[%emt 0:00:06]} 2. d4 {[%emt 0:00:30]} d5 {[%emt 0:00:05]} 3. Nc3 {[%emt 0:00:01]} Nf6 {[%emt 0:00:06]} 4. Bg5 {[%emt 0:00:01]} dxe4 {[%emt 0:00:08]} 5. Nxe4 {[%emt 0:00:02]} Be7 {[%emt 0:00:08]} 6. Bxf6 {[%emt 0:00:04]} gxf6 {[%emt 0:00:05]} 7. Nf3 {[%emt 0:00:02]} f5 {[%emt 0:00:12]} 8. Nc3 {[%emt 0:00:02]} a6 {[%emt 0:00:11]} 9. Qe2 {[%emt 0:01:41]} b5 {[%emt 0:03:53]} 10. O-O-O {[%emt 0:00:06] Threatening Ne5.} b4 {[%emt 0:05:42]} 11. Na4 {[%emt 0:00:22]} Qd5 {[%emt 0:04:55][%cal Oc8d7]} 12. b3 {[%emt 0:29:13]} Nd7 {[%emt 0:09:07]} 13. Qe3 {[%emt 0:00:46]} Bb7 {[%emt 0:06:52]} 14. Bc4 {[%emt 0:02:00]} Qe4 {[%emt 0:01:12] [#]} 15. d5 $1 {[%emt 0:06:28]} Qxe3+ {[%emt 0:10:44]} (15... Bxd5 $6 16. Bxd5 Qxe3+ 17. fxe3 $18) 16. fxe3 {[%emt 0:00:23]} e5 {[%emt 0:00:07]} 17. Rhf1 {[%emt 0:01:25]} Bc8 {[%emt 0:01:52]} 18. g3 {[%emt 0:01:11]} Rb8 {[%emt 0:09:36][%cal Ba8b8,Bb8b5,Bb5c5][%mdl 32]} 19. Rf2 {[%emt 0:17:57]} Rg8 {[%emt 0:01:54]} 20. Bf1 {[%emt 0:05:11]} Bd6 {[%emt 0:16:08]} 21. Nh4 {[%emt 0:02:50]} Nf6 {[%emt 0:03:16]} (21... f4 $14) 22. Bh3 $16 {[%emt 0:00:07]} Rb5 {[%emt 0:16:47]} 23. Bxf5 {[%emt 0:01:48]} Bxf5 {[%emt 0:03:08]} 24. Nxf5 {[%emt 0:00:23]} ({Reject} 24. Rxf5 Nxd5 25. e4 Ne3 26. Rxd6 Nxf5 (26... cxd6 27. Rf3 $15) 27. Rxa6 Ne7 $11) 24... Rg6 {[%emt 0:03:24]} 25. c4 {[%emt 0:06:05] White is more active.} (25. Nxd6+ $16 cxd6 26. Rdf1 (26. c4 bxc3 27. Nxc3 Rc5 $14) 26... Nxd5 27. Rxf7 Nxe3 28. Rf8+ Ke7 29. R1f7+ Ke6 30. Kd2 (30. Rxh7 Rd5 $14)) 25... bxc3 $14 {[%emt 0:00:05]} 26. Nxc3 {[%emt 0:00:02]} Ba3+ $1 {[%emt 0:00:58]} 27. Kb1 $1 {[%emt 0:01:06]} Rc5 {[%emt 0:00:19]} 28. Rc2 $36 {[%emt 0:00:40][%mdl 2048] White has good play.} Bb4 {[%emt 0:00:51]} 29. Na4 {[%emt 0:07:31] Excellent horsemanship.} Rxc2 {[%emt 0:05:51]} 30. Kxc2 {[%emt 0:00:06]} Rg5 {[%emt 0:00:05] [#]} 31. d6 $1 {[%emt 0:01:56]} Kd7 {[%emt 0:00:04]} (31... Rxf5 $2 32. dxc7 Rf2+ 33. Kb1 $18) (31... cxd6 32. Nxd6+) 32. dxc7+ {[%emt 0:00:30]} Kxc7 {[%emt 0:00:03] [#]} 33. Rf1 $1 {[%emt 0:01:51]} Ng4 {[%emt 0:00:55] [#] Repels Nh6} (33... Kd7 $142) 34. e4 $1 $16 {[%emt 0:00:24][%cal Be3e4,Be4f5][%mdl 32]} Rh5 {[%emt 0:00:53]} (34... Rg6 $16 35. h3 Nf6) 35. h4 $18 {[%emt 0:01:21]} Rxf5 {[%emt 0:00:57]} 36. Rxf5 {[%emt 0:00:02][%mdl 4096] Endgame KRN-KBN} Ne3+ {[%emt 0:00:05]} 37. Kd3 {[%emt 0:00:06]} Nxf5 {[%emt 0:00:03]} 38. exf5 {[%emt 0:00:02] KB-KN. White is a pawn up.} Be1 {[%emt 0:00:08][%cal Oh7h5]} 39. g4 {[%emt 0:00:44]} Bxh4 {[%emt 0:00:05]} 40. Nc5 $2 {[%emt 0:03:48]} (40. Ke4 $18) 40... Be7 $1 $11 {[%emt 0:05:57]} 41. Ne4 {[%emt 0:21:06]} (41. Nxa6+ $2 {too greedy.} Kb7 42. Ke4 (42. f6 $2 Bd6 $19) 42... f6 $19 (42... Kxa6 $2 43. Kxe5 Ka5 44. Kd5 $19)) 41... Kc6 {[%emt 0:09:07]} 42. Kc4 {[%emt 0:00:00] Black must now prevent b4.} h6 $2 {[%emt 0:07:26][%mdl 8192]} (42... a5 $1 $14) 43. b4 $18 {[%emt 0:00:00][%cal Bb3b4,Bb4b5][%mdl 32]} f6 $2 {[%emt 0:02:06]} (43... Bf8 44. f6 Kb6) 44. a4 {[%emt 0:00:00]} Bd8 {[%emt 0:01:08]} 45. Nc5 {[%emt 0:00:00]} a5 {[%emt 0:02:43]} 46. b5+ {[%emt 0:00:00]} Kd6 {[%emt 0:00:25]} 47. Ne4+ {[%emt 0:00:00]} Kd7 {[%emt 0:00:07]} 48. Kd5 {[%emt 0:00:00]} Be7 {[%emt 0:00:04]} 49. b6 {[%emt 0:00:00]} Kc8 {[%emt 0:03:16]} 50. Kc6 {[%emt 0:00:00]} 1-0

[Event "35th Staufer-Open-A 2025"]
[Site "Schwaebisch Gmuend"]
[Date "2025.01.05"]
[Round "7.6"]
[White "Gschnitzer, Adrian"]
[Black "Hasanov, Zaur"]
[Result "1-0"]
[ECO "D76"]
[WhiteElo "2442"]
[BlackElo "2231"]
[Annotator "TA"]
[PlyCount "103"]
[EventDate "2024.11.24"]
[EventType "swiss"]
[EventCountry "GER"]
[SourceTitle "playchess.com"]
[Source "ChessBase"]
[SourceQuality "1"]
[TimeControl "40/6000+30:1200+30"]

{[%evp 17,103,22,25,20,21,26,25,19,37,5,48,53,48,53,49,23,86,83,85,64,95,47,48,0,93,89,109,97,89,79,84,83,76,77,111,114,113,113,129,134,169,152,168,168,169,147,182,180,225,221,266,262,274,276,253,252,283,270,258,266,310,309,310,212,237,194,230,218,245,254,334,64,246,71,76,54,79,95,12824,576,4690,10845,29963,1050,29982,29983,29983,29984]} 1. d4 {[%emt 0:02:10]} Nf6 {[%emt 0:00:12]} 2. c4 {[%emt 0:00:09]} g6 {[%emt 0:00:05]} 3. Nf3 {[%emt 0:00:08]} Bg7 {[%emt 0:00:06]} 4. g3 {[%emt 0:00:10]} O-O {[%emt 0:00:06]} 5. Bg2 {[%emt 0:00:09]} d5 {[%emt 0:00:06]} 6. cxd5 {[%emt 0:00:35]} Nxd5 {[%emt 0:00:11]} 7. O-O {[%emt 0:00:15]} Nb6 {[%emt 0:00:03]} 8. Nc3 {[%emt 0:00:38]} Nc6 {[%emt 0:02:19]} 9. e3 {[%emt 0:00:17]} a5 {[%emt 0:00:31]} 10. Qe2 {[%emt 0:00:23]} e5 {[%emt 0:05:44]} 11. Nxe5 {[%emt 0:00:27]} Nxe5 {[%emt 0:00:06]} 12. dxe5 {[%emt 0:00:10]} Bxe5 {[%emt 0:00:04]} 13. f4 {[%emt 0:00:11]} Bg7 {[%emt 0:00:36]} 14. e4 {[%emt 0:00:30]} Be6 {[%emt 0:04:31]} 15. Rd1 {[%emt 0:00:12]} Qc8 {[%emt 0:12:09]} 16. Be3 {[%emt 0:02:30]} Rd8 {[%emt 0:17:37]} (16... Bg4 $11 17. Bf3 Bxf3 18. Qxf3 Bxc3 19. bxc3 Qe6) 17. e5 {[%emt 0:03:29]} Rxd1+ {[%emt 0:12:49]} 18. Rxd1 {[%emt 0:00:29]} a4 {[%emt 0:03:05]} 19. Qb5 {[%emt 0:41:11]} (19. Bf3 $16) 19... Bf8 $14 {[%emt 0:17:40] and ...Bc4 should not be overlooked} 20. Bc5 {[%emt 0:01:35]} (20. Bf1 $14) 20... Bd7 {[%emt 0:03:02] Black is weak on the dark squares} (20... Nc4 $1 $11 {keeps the balance.} 21. Bxf8 (21. Nxa4 $2 c6 $19) 21... Qxf8) 21. Qb4 $16 {[%emt 0:01:08] White has more active pieces.} Bc6 {[%emt 0:00:27]} 22. Bxc6 {[%emt 0:17:14]} (22. Ne4 {keeps more tension.} Bxc5+ 23. Qxc5 Qe6 24. Ng5) 22... bxc6 {[%emt 0:00:12]} 23. Bxf8 {[%emt 0:01:05]} Qxf8 {[%emt 0:00:08]} 24. Qxf8+ {[%emt 0:01:14]} Kxf8 {[%emt 0:00:07][%mdl 4096] Endgame KRN-KRN} 25. Ne4 {[%emt 0:01:53]} Nd5 {[%emt 0:09:51]} 26. a3 $1 {[%emt 0:06:50]} Rb8 {[%emt 0:02:14]} 27. Rd2 {[%emt 0:00:17]} Rb5 {[%emt 0:00:13]} 28. Kf2 {[%emt 0:03:34]} h5 {[%emt 0:01:01] [#]} 29. Rc2 $1 {[%emt 0:02:22]} Ke7 {[%emt 0:03:21]} 30. Nc5 {[%emt 0:00:53]} (30. Rxc6 Rxb2+ 31. Kg1 Rb3 $11) 30... Nb6 {[%emt 0:00:43]} 31. Ke2 {[%emt 0:03:17]} h4 {[%emt 0:00:56]} 32. gxh4 {[%emt 0:07:19]} Ra5 {[%emt 0:03:29]} 33. Kf3 {[%emt 0:02:03]} Ra8 {[%emt 0:00:38]} 34. Ne4 {[%emt 0:01:13]} Nd5 {[%emt 0:01:12]} 35. Rxc6 {[%emt 0:05:10]} Rb8 {[%emt 0:01:24]} 36. Nc3 {[%emt 0:01:45]} Rb3 {[%emt 0:02:20][%cal Oe7d7]} 37. Rc5 {[%emt 0:05:31]} Nxc3 {[%emt 0:01:16]} 38. Rxc7+ {[%emt 0:00:13]} (38. Rxc3 Rxb2 39. Rxc7+ Ke6 $16) (38. bxc3 $6 Rxa3 39. Rxc7+ Ke6 $16) 38... Kd8 {[%emt 0:00:08]} 39. Rxc3 {[%emt 0:00:22]} Rxb2 $18 {[%emt 0:00:18] KR-KR. White is two pawns up.} 40. h3 {[%emt 0:00:35]} Rb3 {[%emt 0:03:09] [#]} 41. Re3 $1 {[%emt 0:20:14][%cal Oh4h5]} Ke7 {[%emt 0:20:23]} 42. Ke4 {[%emt 0:00:24] Hoping for Rxb3.} Rb8 {[%emt 0:02:16] [#]} 43. h5 $1 {[%emt 0:00:00]} gxh5 {[%emt 0:00:00]} (43... f5+ 44. exf6+) 44. f5 $2 {[%emt 0:00:00]} (44. Rc3 $18) 44... Rb1 $2 {[%emt 0:00:00]} ({Better is} 44... f6 $1 $14) 45. Rd3 $2 {[%emt 0:00:00]} (45. Kf4 $18 {is the precise move to win.}) 45... f6 $16 {[%emt 0:00:00]} 46. exf6+ {[%emt 0:00:00]} Kxf6 {[%emt 0:00:24]} 47. Rd6+ {[%emt 0:00:00]} Kg5 $2 {[%emt 0:00:00][%mdl 8192]} (47... Kg7 $16) 48. Rg6+ $18 {[%emt 0:00:00]} Kh4 {[%emt 0:00:00]} 49. f6 {[%emt 0:00:00][%cal Bf5f6,Bf6f7][%mdl 32] Threatening mate with Kf5.} Kxh3 {[%emt 0:00:00]} 50. Rg5 {[%emt 0:00:00]} (50. Kf5 $142 Rb7 51. Rg5 Rb8 52. Rxh5+ Kg3 53. f7 Kf3 54. Kg6 Ke4 55. Kg7) 50... Rb8 {[%emt 0:00:00]} 51. f7 {[%emt 0:00:00]} (51. Rxh5+ Kg4 52. Ra5 Rf8 $14) 51... Rf8 {[%emt 0:00:00]} 52. Rxh5+ {[%emt 0:00:00]} 1-0